fUSD/lending_fUSD_20240814
["ID","MTS","AMOUNT","RATE_DAILY","PERIOD"]
[334846102,1723607528567,-500.0,0.00016164,2]
[334846103,1723607528578,-826.02,0.00016164,2]
[334846104,1723607528588,-3051.08,0.00016164,2]
[334846105,1723607528598,-500.0,0.00016164,2]
[334846106,1723607528608,-764.7,0.00016164,2]
[334846107,1723607528618,-2301.35,0.00016164,2]
[334846108,1723607528628,-500.0,0.00016164,2]
[334846109,1723607528637,-892.62,0.00016164,2]
[334846110,1723607528647,-573.74,0.00016164,2]
[334846111,1723607528656,-1107.8,0.00016164,2]
[334846112,1723607528666,-1861.4,0.00016164,2]
[334846113,1723607528676,-500.0,0.00016164,2]
[334846114,1723607528685,-2273.24,0.00016164,2]
[334846115,1723607528695,-500.0,0.00016164,2]
[334846116,1723607528705,-2591.06,0.00016164,2]
[334846117,1723607528716,-665.28,0.00016164,2]
[334846118,1723607528726,-757.85,0.00016164,2]
[334846119,1723607528736,-618.25,0.00016164,2]
[334846120,1723607528746,-2359.68,0.00016164,2]
[334846121,1723607528757,-1206.64,0.00016164,2]
[334846122,1723607528768,-379.25147615,0.00016164,2]
[334846123,1723607528778,-992.14,0.00016164,2]
[334846124,1723607528788,-616.31,0.00016164,2]
[334846125,1723607528798,-500.0,0.00016164,2]
[334846126,1723607528808,-1436.09,0.00016164,2]
[334846127,1723607528818,-1728.26,0.00016164,2]
[334846128,1723607528828,-1282.64,0.00016164,2]
[334846129,1723607528838,-500.0,0.00016164,2]
[334846130,1723607528848,-1719.54,0.00016164,2]
[334846131,1723607528858,-1106.45,0.00016164,2]
[334846132,1723607528868,-567.82,0.00016164,2]
[334846133,1723607528878,-21892.84,0.00016164,2]
[334846134,1723607528888,-1004.98,0.00016164,2]
[334846135,1723607528898,-1425.33,0.00016164,2]
[334846136,1723607528907,-500.0,0.00016164,2]
[334846137,1723607528917,-794.39,0.00016164,2]
[334846138,1723607528927,-500.0,0.00016164,2]
[334846139,1723607528936,-1334.68,0.00016164,2]
[334846140,1723607528946,-947.71,0.00016164,2]
[334846141,1723607528956,-2185.69,0.00016164,2]
[334846142,1723607528967,-74311.05,0.00016164,2]
[334846143,1723607528977,-2926.39,0.00016164,2]
[334846144,1723607528987,-11265.49,0.00016164,2]
[334846145,1723607528998,-827.11,0.00016164,2]
[334846146,1723607529007,-19652.25,0.00016164,2]
[334846147,1723607529018,-949.5,0.00016164,2]
[334846148,1723607529028,-684.84,0.00016164,2]
[334846149,1723607529038,-2325.77,0.00016164,2]
[334846150,1723607529048,-500.0,0.00016164,2]
[334846151,1723607529059,-1060.07,0.00016164,2]
[334846152,1723607529069,-500.0,0.00016164,2]
[334846153,1723607529079,-931.34,0.00016164,2]
[334846154,1723607529089,-500.0,0.00016164,2]
[334846155,1723607529099,-11770.95,0.00016164,2]
[334846156,1723607529109,-542.79,0.00016164,2]
[334846157,1723607529119,-3216.15,0.00016164,2]
[334846158,1723607529131,-996.72,0.00016164,2]
[334846159,1723607529142,-500.0,0.00016164,2]
[334846160,1723607529152,-500.0,0.00016164,2]
[334846161,1723607529164,-864.22,0.00016164,2]
[334846162,1723607529174,-1090.63,0.00016164,2]
[334846163,1723607529185,-754.69,0.00016164,2]
[334846164,1723607529194,-4142.45,0.00016164,2]
[334846165,1723607529204,-500.0,0.00016164,2]
[334846166,1723607529215,-500.0,0.00016164,2]
[334846167,1723607529226,-16309.16,0.00016164,2]
[334846168,1723607529236,-2654.22,0.00016164,2]
[334846169,1723607529246,-25466.62,0.00016164,2]
[334846170,1723607529256,-4541.96,0.00016164,2]
[334846171,1723607529267,-519.09,0.00016164,2]
[334846172,1723607529277,-539.83,0.00016164,2]
[334846173,1723607529288,-889.01,0.00016164,2]
[334846174,1723607529298,-547.21130866,0.00016164,2]
[334846175,1723607529309,-2396.89,0.00016164,2]
[334846176,1723607529319,-1347.69,0.00016164,2]
[334846177,1723607529329,-677.92,0.00016164,2]
[334846178,1723607529340,-500.0,0.00016164,2]
[334846179,1723607529350,-6138.85,0.00016164,2]
[334846180,1723607529361,-9972.45,0.00016164,2]
[334846181,1723607529373,-1022.55,0.00016164,2]
[334846182,1723607529383,-500.0,0.00016164,2]
[334846183,1723607529393,-809.32,0.00016164,2]
[334846184,1723607529404,-642.44,0.00016164,2]
[334846185,1723607529415,-500.0,0.00016164,2]
[334846186,1723607529425,-8165.91,0.00016164,2]
[334846187,1723607529436,-2852.39,0.00016164,2]
[334846188,1723607529447,-1024.38,0.00016164,2]
[334846189,1723607529458,-1105.51,0.00016164,2]
[334846190,1723607529468,-5016.05,0.00016164,2]
[334846191,1723607529478,-2644.48,0.00016164,2]
[334846192,1723607529489,-4884.61,0.00016164,2]
[334846193,1723607529500,-5077.56,0.00016164,2]
[334846194,1723607529510,-500.0,0.00016164,2]
[334846195,1723607529520,-6250.39,0.00016164,2]
[334846196,1723607529531,-1108.79,0.00016164,2]
[334846197,1723607529542,-700.09,0.00016164,2]
[334846198,1723607529553,-2760.64,0.00016164,2]
[334846199,1723607529563,-779.07,0.00016164,2]
[334846200,1723607529574,-500.0,0.00016164,2]
[334846201,1723607529585,-661.27,0.00016164,2]
[334846202,1723607529596,-1348.31,0.00016164,2]
[334846203,1723607529607,-14387.22,0.00016164,2]
[334846204,1723607529618,-860.11,0.00016164,2]
[334846205,1723607529628,-500.0,0.00016164,2]
[334846206,1723607529639,-844.08,0.00016164,2]
[334846207,1723607529650,-500.0,0.00016164,2]
[334846208,1723607529660,-7897.51,0.00016164,2]
[334846209,1723607529671,-6779.45,0.00016164,2]
[334846210,1723607529683,-2175.6,0.00016164,2]
[334846211,1723607529693,-1926.56,0.00016164,2]
[334846212,1723607529704,-7867.37,0.00016164,2]
[334846213,1723607529717,-966.36,0.00016164,2]
[334846214,1723607529728,-2876.73,0.00016164,2]
[334846215,1723607530032,-20943.27,0.00016164,2]
[334846216,1723607530063,-500.0,0.00016164,2]
[334846217,1723607530101,-772.3,0.00016164,2]
[334846218,1723607530122,-620.71,0.00016164,2]
[334846219,1723607530142,-500.0,0.00016164,2]
[334846220,1723607530163,-513.11,0.00016164,2]
[334846221,1723607530184,-656.4,0.00016164,2]
[334846222,1723607530204,-818.88,0.00016164,2]
[334846223,1723607530227,-668.43,0.00016164,2]
[334846224,1723607530248,-500.0,0.00016164,2]
[334846225,1723607530270,-500.0,0.00016164,2]
[334846226,1723607530291,-500.0,0.00016164,2]
[334846227,1723607530312,-3735.01,0.00016164,2]
[334846228,1723607530322,-12745.7,0.00016164,2]
[334846229,1723607530333,-1936.62,0.00016164,2]
[334846230,1723607530343,-1883.94,0.00016164,2]
[334846231,1723607530354,-4612.26,0.00016164,2]
[334846232,1723607530364,-1326.52,0.00016164,2]
[334846233,1723607530375,-1144.63,0.00016164,2]
[334846234,1723607530386,-23504.48,0.00016164,2]
[334846235,1723607530396,-3537.48,0.00016164,2]
[334846236,1723607530406,-500.0,0.00016164,2]
[334846237,1723607530416,-500.0,0.00016164,2]
[334846238,1723607530426,-3439.86,0.00016164,2]
[334846239,1723607530437,-500.0,0.00016164,2]
[334846240,1723607530448,-1749.84,0.00016164,2]
[334846241,1723607530460,-1169.49,0.00016164,2]
[334846242,1723607530476,-2025.45,0.00016164,2]
[334846243,1723607530486,-861.16,0.00016164,2]
[334846244,1723607530497,-500.0,0.00016164,2]
[334846245,1723607530508,-500.0,0.00016164,2]
[334846246,1723607530518,-7943.45,0.00016164,2]
[334846247,1723607530528,-960.52,0.00016164,2]
[334846248,1723607530539,-13270.11,0.00016164,2]
[334846249,1723607530550,-731.33,0.00016164,2]
[334846250,1723607530562,-1144.12,0.00016164,2]
[334846251,1723607530573,-789.39,0.00016164,2]
[334846252,1723607530584,-1646.88,0.00016164,2]
[334846253,1723607530596,-2551.38,0.00016164,2]
[334846254,1723607530607,-867.71,0.00016164,2]
[334846255,1723607530617,-5047.14,0.00016164,2]
[334846256,1723607530627,-1652.02,0.00016164,2]
[334846257,1723607530638,-3458.14,0.00016164,2]
[334846258,1723607530648,-853.31,0.00016164,2]
[334846259,1723607530659,-1116.13,0.00016164,2]
[334846260,1723607530669,-500.0,0.00016164,2]
[334846261,1723607530679,-500.0,0.00016164,2]
[334846262,1723607530689,-1828.19,0.00016164,2]
[334846263,1723607530700,-981.94,0.00016164,2]
[334846264,1723607530711,-2030.16,0.00016164,2]
[334846265,1723607530720,-816.29,0.00016164,2]
[334846266,1723607530729,-618.17,0.00016164,2]
[334846267,1723607530739,-500.0,0.00016164,2]
[334846268,1723607530749,-1632.54,0.00016164,2]
[334846269,1723607530759,-1877.65,0.00016164,2]
[334846270,1723607530769,-616.6,0.00016164,2]
[334846271,1723607530779,-3032.3,0.00016164,2]
[334846272,1723607530789,-2405.3,0.00016164,2]
[334846273,1723607530800,-527.4,0.00016164,2]
[334846274,1723607530810,-3859.03,0.00016164,2]
[334846275,1723607530820,-2540.67,0.00016164,2]
[334846276,1723607530830,-511.84,0.00016164,2]
[334846277,1723607530841,-5924.29,0.00016164,2]
[334846278,1723607530851,-714.75,0.00016164,2]
[334846279,1723607530860,-500.0,0.00016164,2]
[334846280,1723607530871,-2044.59,0.00016164,2]
[334846281,1723607530880,-14638.33,0.00016164,2]
[334846282,1723607530890,-2856.42,0.00016164,2]
[334846283,1723607530900,-500.0,0.00016164,2]
[334846284,1723607530909,-3003.74,0.00016164,2]
[334846285,1723607530919,-6014.88,0.00016164,2]
[334846286,1723607530929,-1266.06,0.00016164,2]
[334846287,1723607530939,-2719.38,0.00016164,2]
[334846288,1723607530948,-500.0,0.00016164,2]
[334846289,1723607530959,-7501.73,0.00016164,2]
[334846290,1723607530969,-852.97,0.00016164,2]
[334846291,1723607530979,-2454.88,0.00016164,2]
[334846292,1723607530988,-500.0,0.00016164,2]
[334846293,1723607530998,-1936.84,0.00016164,2]
[334846294,1723607531008,-1734.13,0.00016164,2]
[334846295,1723607531018,-5008.91,0.00016164,2]
[334846296,1723607531028,-500.0,0.00016164,2]
[334846297,1723607531037,-500.0,0.00016164,2]
[334846298,1723607531048,-512.05,0.00016164,2]
[334846299,1723607531059,-500.0,0.00016164,2]
[334846300,1723607531070,-2136.98,0.00016164,2]
[334846301,1723607531081,-3579.33,0.00016164,2]
[334846302,1723607531092,-3081.75,0.00016164,2]
[334846303,1723607531103,-1834.77,0.00016164,2]
[334846304,1723607531114,-2280.59,0.00016164,2]
[334846305,1723607531124,-3352.55,0.00016164,2]
[334846306,1723607531136,-2616.01,0.00016164,2]
[334846307,1723607531146,-500.0,0.00016164,2]
[334846308,1723607531157,-621.9,0.00016164,2]
[334846309,1723607531167,-4828.17,0.00016164,2]
[334846310,1723607531179,-676.11,0.00016164,2]
[334846311,1723607531188,-500.0,0.00016164,2]
[334846312,1723607531198,-5350.32,0.00016164,2]
[334846313,1723607531209,-3059.25428507,0.00016164,2]
[334846314,1723607531622,-515.811067,0.00016164,2]
[334846315,1723607531633,-321.16464793,0.00016164,2]
[334846316,1723607531643,-154.16781946,0.00016164,2]
[334846317,1723607531655,-523.20218054,0.00016164,2]
[334846318,1723607531665,-42.79306552,0.00016164,2]
[334846319,1723607531742,-1404.61876171,0.00016164,2]
[334846320,1723607531754,-720.53499988,0.00016164,2]
[334846321,1723607531766,-3145.92623713,0.00016164,2]
[334846322,1723607531777,-742.96054236,0.00016164,2]
[334846323,1723607531789,-267.06272339,0.00016164,2]
[334846324,1723607531800,-1484.38367001,0.00016164,2]
[334846325,1723607531810,-2868.97,0.00016164,2]
[334846326,1723607531820,-557.86662617,0.00016164,2]
[334846327,1723607531831,-112.37337383,0.00016164,2]
[334846328,1723607531841,-500.0,0.00016164,2]
[334846329,1723607531851,-304.37563366,0.00016164,2]
[334846330,1723607531862,-368.87229518,0.00016164,2]
[334846331,1723607532475,-2760.07254817,0.00011755,2]
[334846332,1723607532486,-434.012,0.00011755,2]
[334846333,1723607532498,-1904.96994,0.00011755,2]
[334846334,1723607532518,-261.60174887,0.00011755,2]
[334846335,1723607532528,-1128.75496496,0.00011755,2]
[334846336,1723607532540,-3510.588798,0.00011755,2]
[334846337,1723607532550,-500.0,0.00013698,2]
[334846338,1723607532559,-492.9,0.00013698,2]
[334846339,1723607532569,-500.0,0.00013698,2]
[334846340,1723607532580,-204.24467621,0.00013698,2]
[334846341,1723607532589,-832.92,0.00013698,2]
[334846342,1723607532599,-500.0,0.00013698,2]
[334846343,1723607532609,-500.0,0.00013698,2]
[334846344,1723607532619,-501.58768808,0.00013698,2]
[334846345,1723607532629,-500.0,0.00013698,2]
[334846346,1723607532638,-801.68359073,0.00013698,2]
[334846347,1723607532650,-1433.53640927,0.00013698,2]
[334846348,1723607532660,-728.99276366,0.00013698,2]
[334846349,1723607532670,-500.0,0.00013972,2]
[334846350,1723607532680,-832.92,0.00013972,2]
[334846351,1723607532690,-500.0,0.00013972,2]
[334846352,1723607532700,-246.81748278,0.00013972,2]
[334846353,1723607532713,-500.0,0.00013972,2]
[334846354,1723607532723,-500.0,0.00014246,2]
[334846355,1723607532734,-832.92,0.00014246,2]
[334846356,1723607532744,-500.0,0.00014246,2]
[334846357,1723607532755,-500.0,0.0001452,2]
[334846358,1723607532766,-832.92,0.0001452,2]
[334846359,1723607532777,-163.24720115,0.0001452,2]
[334846360,1723607532787,-626.14621094,0.00014794,2]
[334846361,1723607532798,-832.92,0.00014794,2]
[334846362,1723607532808,-1599.4,0.00015068,2]
[334846363,1723607532819,-832.92,0.00015068,2]
[334846364,1723607532829,-1599.4,0.00015342,2]
[334846365,1723607532840,-832.92,0.00015342,2]
[334846366,1723607532850,-1599.4,0.00015616,2]
[334846367,1723607532861,-1599.4,0.0001589,2]
[334846368,1723607532870,-1928.05207116,0.00016164,2]
[334846369,1723607532881,-2687.31,0.00016164,2]
[334846370,1723607532891,-2583.71,0.00016164,2]
[334846371,1723607532901,-1579.62,0.00016164,2]
[334846372,1723607532911,-3504.73,0.00016164,2]
[334846373,1723607532921,-500.0,0.00016164,2]
[334846374,1723607532931,-1576.25115684,0.00016164,2]
[334846375,1723607532943,-268.25,0.00016164,2]
[334846376,1723607532954,-1217.64466643,0.00016164,2]
[334846377,1723607532968,-819.98417673,0.00016164,2]
[334846378,1723607532989,-698.86,0.00016164,2]
[334846379,1723607533018,-1879.57233327,0.00016164,2]
[334846380,1723607533058,-832.92,0.00015616,2]
[334846381,1723607533083,-620.57,0.00016164,2]
[334846382,1723607533123,-1607.04766673,0.00016164,2]
[334846383,1723607533150,-1358.81123521,0.00016164,2]
[334846384,1723607533176,-290.05976315,0.00016164,2]
[334846385,1723607533189,-587.86900164,0.00016164,2]
[334846386,1723607533199,-522.25654626,0.00016164,2]
[334846387,1723607533213,-264.62345374,0.00016164,2]
[334846388,1723607533223,-1100.89,0.00016164,2]
[334846389,1723607533232,-639.71,0.00016164,2]
[334846390,1723607533242,-500.0,0.00016164,2]
[334846391,1723607533252,-500.0,0.00016164,2]
[334846392,1723607533261,-591.41699305,0.00016164,2]
[334846393,1723607533273,-151.15300695,0.00016164,2]
[334846394,1723607533283,-147.9254407,0.00016164,2]
[334846395,1723607533299,-283.49453764,0.00016164,2]
[334846396,1723607533319,-160.2049003,0.00013598,2]
[334846397,1723607533329,-387.2350997,0.00013698,2]
[334846398,1723607533341,-743.86695886,0.00013698,2]
[334846399,1723607533352,-1917.4034452,0.00013698,2]
[334846400,1723607533363,-678.72349785,0.00013698,2]
[334846401,1723607533375,-850.03340466,0.00013698,2]
[334846402,1723607533390,-353.88996186,0.00013698,2]
[334846403,1723607533401,-804.54763187,0.00013698,2]
[334846404,1723607533411,-260.50002166,0.00016164,2]
[334846405,1723607533420,-1668.19,0.00016164,2]
[334846406,1723607533430,-500.0,0.00016164,2]
[334846407,1723607533439,-2907.31227844,0.00016164,2]
[334846408,1723607533451,-5998.69772156,0.00016164,2]
[334846409,1723607533463,-2047.56734127,0.00016164,2]
[334846410,1723607533475,-1048.50265873,0.00016164,2]
[334846411,1723607533485,-688.31,0.00016164,2]
[334846412,1723607533495,-521.01,0.00016164,2]
[334846413,1723607533504,-2079.25,0.00016164,2]
[334846414,1723607533513,-3714.26,0.00016164,2]
[334846415,1723607533523,-1386.58,0.00016164,2]
[334846416,1723607533532,-866.22,0.00016164,2]
[334846417,1723607533541,-7418.61,0.00016164,2]
[334846418,1723607533550,-887.71,0.00016164,2]
[334846419,1723607533560,-500.0,0.00016164,2]
[334846420,1723607533569,-3269.23,0.00016164,2]
[334846421,1723607533578,-1076.95,0.00016164,2]
[334846422,1723607533587,-5659.08,0.00016164,2]
[334846423,1723607533597,-2929.81,0.00016164,2]
[334846424,1723607533606,-1043.59,0.00016164,2]
[334846425,1723607533616,-500.0,0.00016164,2]
[334846426,1723607533625,-707.28,0.00016164,2]
[334846427,1723607533634,-2501.36,0.00016164,2]
[334846428,1723607533644,-3153.8,0.00016164,2]
[334846429,1723607533654,-1497.14,0.00016164,2]
[334846430,1723607533663,-3648.88,0.00016164,2]
[334846431,1723607533673,-4369.58,0.00016164,2]
[334846432,1723607533682,-500.0,0.00016164,2]
[334846433,1723607533691,-5522.3600742,0.00016164,2]
[334846434,1723607533702,-1344.40546939,0.00016164,2]
[334846435,1723607533832,-1531.57713695,0.00016164,2]
[334846436,1723607533843,-2160.31731946,0.00016164,2]
[334846437,1723607533853,-3991.69,0.00016164,2]
[334846438,1723607533862,-543.63,0.00016164,2]
[334846439,1723607533871,-617.95,0.00016164,2]
[334846440,1723607533880,-2141.4,0.00016164,2]
[334846441,1723607533890,-2617.38,0.00016164,2]
[334846442,1723607533899,-4898.32,0.00016164,2]
[334846443,1723607533908,-1048.11,0.00016164,2]
[334846444,1723607533918,-2200.01,0.00016164,2]
[334846445,1723607533928,-500.0,0.00016164,2]
[334846446,1723607533937,-680.5,0.00016164,2]
[334846447,1723607533947,-3069.08,0.00016164,2]
[334846448,1723607533957,-4095.44,0.00016164,2]
[334846449,1723607533969,-1101.33,0.00016164,2]
[334846450,1723607533979,-3093.95,0.00016164,2]
[334846451,1723607533988,-1974.21,0.00016164,2]
[334846452,1723607533997,-525.19,0.00016164,2]
[334846453,1723607534006,-1153.12,0.00016164,2]
[334846454,1723607534015,-500.0,0.00016164,2]
[334846455,1723607534025,-1698.84,0.00016164,2]
[334846456,1723607534034,-1954.47,0.00016164,2]
[334846457,1723607534043,-500.0,0.00016164,2]
[334846458,1723607534053,-500.0,0.00016164,2]
[334846459,1723607534062,-1008.04,0.00016164,2]
[334846460,1723607534071,-1831.82,0.00016164,2]
[334846461,1723607534081,-2865.91,0.00016164,2]
[334846462,1723607534090,-7369.92133188,0.00016164,2]
[334846463,1723607534101,-1566.6,0.00016164,2]
[334846464,1723607534112,-1744.32203037,0.00016164,2]
[334846465,1723607534123,-417.95823573,0.00016164,2]
[334846466,1723607534135,-1884.91705825,0.00016164,2]
[334846467,1723607534158,-456.94745027,0.00013972,2]
[334846468,1723607534170,-1778.27254973,0.00013972,2]
[334846469,1723607534181,-500.0,0.00014246,2]
[334846470,1723607534204,-2582.89134377,0.00016164,2]
[334846471,1723607534216,-5061.88278127,0.00016164,2]
[334846472,1723607534229,-425.60721873,0.00016164,2]
[334846473,1723607534240,-500.0,0.00016164,2]
[334846474,1723607534249,-1775.62379941,0.00016164,2]
[334846475,1723607534261,-187.93620059,0.00016164,2]
[334846476,1723607534272,-597.8,0.00016164,2]
[334846477,1723607534282,-686.68,0.00016164,2]
[334846478,1723607534291,-500.0,0.00016164,2]
[334846479,1723607534300,-500.0,0.00016164,2]
[334846480,1723607534310,-1884.73,0.00016164,2]
[334846481,1723607534319,-337.05527317,0.00016164,2]
[334846482,1723607534331,-525.80472683,0.00016164,2]
[334846483,1723607534341,-608.32976731,0.00016164,2]
[334846484,1723607555847,205.23873227,0.00027,120]
[334846490,1723608133470,244.081413,0.00025,60]
[334846510,1723608638259,-1246.22651879,0.000109,2]
[334846511,1723608638427,-3628.5075875,0.000109,2]
[334846512,1723608638437,-250.72894081,0.00011,2]
[334846513,1723608638447,-150.0,0.00011,2]
[334846514,1723608638457,-180.86,0.00011425,2]
[334846515,1723608638467,-300.0,0.00012238,2]
[334846516,1723608638477,-10000.0,0.00012239,2]
[334846517,1723608638487,-150.187,0.00012665,2]
[334846518,1723608638496,-250.0,0.00013139,2]
[334846519,1723608638506,-290.56,0.0001317,2]
[334846520,1723608638516,-180.07,0.00013209,2]
[334846521,1723608638526,-420.0,0.00013431,2]
[334846522,1723608638535,-203.2,0.00013435,2]
[334846523,1723608638544,-709.44,0.00013486,2]
[334846524,1723608638554,-160.20490027,0.00013498,2]
[334846525,1723608638564,-535.86025092,0.0001351,10]
[334846526,1723608638573,-535.86025092,0.0001351,10]
[334846527,1723608638582,-417.80862872,0.00013598,2]
[334846528,1723608638591,-155727.1428,0.00013598,2]
[334846529,1723608638601,-1950.5873,0.00013598,2]
[334846530,1723608638618,-1354.6302,0.00013598,2]
[334846531,1723608638628,-7500.0,0.00013598,2]
[334846532,1723608638637,-180.86,0.00013689,2]
[334846533,1723608638648,-184662.18987504,0.0001369,2]
[334846534,1723608638659,-500.0,0.00013698,2]
[334846535,1723608638668,-500.0,0.00013698,2]
[334846536,1723608638678,-500.0,0.00013698,2]
[334846537,1723608638689,-500.0,0.00013698,2]
[334846538,1723608638699,-550.36,0.00013698,2]
[334846539,1723608638708,-224.22101033,0.00013698,2]
[334846540,1723608638718,-744.62,0.00013698,2]
[334846541,1723608638727,-500.0,0.00013698,2]
[334846543,1723608638736,-808.56,0.00013698,2]
[334846545,1723608638746,-500.0,0.00013698,2]
[334846547,1723608638755,-500.0,0.00013698,2]
[334846549,1723608638764,-867.77,0.00013698,2]
[334846550,1723608638774,-533.83490057,0.00013698,2]
[334846552,1723608638783,-500.0,0.00013698,2]
[334846554,1723608638793,-1524.25,0.00013698,2]
[334846556,1723608638802,-500.0,0.00013698,2]
[334846558,1723608638812,-500.0,0.00013698,2]
[334846560,1723608638822,-500.0,0.00013698,2]
[334846562,1723608638831,-523.59927066,0.00013698,2]
[334846564,1723608638840,-500.0,0.00013698,2]
[334846566,1723608638850,-500.0,0.00013698,2]
[334846568,1723608638860,-500.0,0.00013698,2]
[334846570,1723608638870,-500.0,0.00013698,2]
[334846572,1723608638879,-1120.87,0.00013698,2]
[334846574,1723608638889,-794.3,0.00013698,2]
[334846576,1723608638899,-500.0,0.00013698,2]
[334846578,1723608638908,-1356.55,0.00013698,2]
[334846580,1723608638917,-500.0,0.00013698,2]
[334846582,1723608638926,-500.0,0.00013698,2]
[334846584,1723608638936,-1103.27,0.00013698,2]
[334846586,1723608638945,-500.0,0.00013698,2]
[334846588,1723608638954,-1233.42,0.00013698,2]
[334846590,1723608638963,-1108.58,0.00013698,2]
[334846592,1723608638973,-279.65882096,0.00013698,2]
[334846594,1723608638982,-500.0,0.00013698,2]
[334846596,1723608638991,-500.0,0.00013698,2]
[334846598,1723608639000,-500.0,0.00013698,2]
[334846600,1723608639009,-500.0,0.00013698,2]
[334846601,1723608639019,-356.81487991,0.00013698,2]
[334846603,1723608639028,-500.0,0.00013698,2]
[334846605,1723608639037,-730.63,0.00013698,2]
[334846607,1723608639046,-500.0,0.00013698,2]
[334846609,1723608639055,-835.96,0.00013698,2]
[334846611,1723608639064,-828.99,0.00013698,2]
[334846613,1723608639074,-1105.99,0.00013698,2]
[334846615,1723608639083,-646.4,0.00013698,2]
[334846617,1723608639092,-1354.23,0.00013698,2]
[334846619,1723608639101,-175.99430982,0.00013698,2]
[334846621,1723608639111,-653.83,0.00013698,2]
[334846622,1723608639121,-500.0,0.00013698,2]
[334846624,1723608639131,-1040.79,0.00013698,2]
[334846626,1723608639140,-500.0,0.00013698,2]
[334846628,1723608639150,-1439.89,0.00013698,2]
[334846630,1723608639160,-500.0,0.00013698,2]
[334846632,1723608639170,-500.0,0.00013698,2]
[334846634,1723608639179,-500.0,0.00013698,2]
[334846636,1723608639188,-500.0,0.00013698,2]
[334846638,1723608639197,-1836.34,0.00013698,2]
[334846640,1723608639206,-500.0,0.00013698,2]
[334846642,1723608639215,-500.0,0.00013698,2]
[334846644,1723608639226,-836.32,0.00013698,2]
[334846646,1723608639235,-503.44,0.00013698,2]
[334846647,1723608639244,-500.0,0.00013698,2]
[334846649,1723608639253,-500.0,0.00013698,2]
[334846651,1723608639263,-500.0,0.00013698,2]
[334846653,1723608639272,-500.0,0.00013698,2]
[334846655,1723608639282,-500.0,0.00013698,2]
[334846657,1723608639291,-500.0,0.00013698,2]
[334846659,1723608639303,-558.96,0.00013698,2]
[334846661,1723608639322,-500.0,0.00013698,2]
[334846663,1723608639342,-500.0,0.00013698,2]
[334846665,1723608639365,-500.0,0.00013698,2]
[334846667,1723608639379,-500.0,0.00013698,2]
[334846669,1723608639389,-545.83,0.00013698,2]
[334846671,1723608639398,-500.0,0.00013698,2]
[334846673,1723608639408,-500.0,0.00013698,2]
[334846675,1723608639417,-1376.48,0.00013698,2]
[334846677,1723608639427,-500.0,0.00013698,2]
[334846679,1723608639437,-500.0,0.00013698,2]
[334846681,1723608639446,-500.0,0.00013698,2]
[334846683,1723608639457,-500.0,0.00013698,2]
[334846685,1723608639466,-500.0,0.00013698,2]
[334846687,1723608639476,-500.0,0.00013698,2]
[334846689,1723608639485,-631.38,0.00013698,2]
[334846691,1723608639494,-500.0,0.00013698,2]
[334846693,1723608639504,-500.0,0.00013698,2]
[334846695,1723608639513,-1005.09,0.00013698,2]
[334846697,1723608639523,-676.06,0.00013698,2]
[334846699,1723608639532,-636.2,0.00013698,2]
[334846701,1723608639542,-500.0,0.00013698,2]
[334846703,1723608639552,-500.0,0.00013698,2]
[334846705,1723608639561,-500.0,0.00013698,2]